fUSD/lending_fUSD_20260510
["ID","MTS","AMOUNT","RATE_DAILY","PERIOD"]
[421928711,1778345363000,-150.0,0.00015338,2]
[421928713,1778345363000,-200.0,0.00015405,2]
[421928727,1778345431000,-500.0,0.00015517,2]
[421928728,1778345431000,-241.54979015,0.00015625,2]
[421928775,1778345437000,-500.0,0.00016518,2]
[421928744,1778345437000,-529.31108141,0.00015625,2]
[421928746,1778345437000,-1729.13912844,0.00015625,2]
[421928747,1778345437000,-592.49404112,0.00015732,2]
[421928749,1778345437000,-1200.0,0.00015841,2]
[421928750,1778345437000,-2000.0,0.00015882,2]
[421928752,1778345437000,-300.0,0.00016,2]
[421928751,1778345437000,-1345.27,0.00015993,2]
[421928753,1778345437000,-165.79056391,0.00016012,2]
[421928755,1778345437000,-157.79525431,0.00016092,2]
[421928754,1778345437000,-447.49,0.00016042,2]
[421928758,1778345437000,-9620.89484675,0.00016092,2]
[421928764,1778345437000,-151.0,0.00016419,2]
[421928757,1778345437000,-2438.15312271,0.00016092,2]
[421928759,1778345437000,-1345.27,0.00016383,2]
[421928748,1778345437000,-2500.0,0.0001577,2]
[421928760,1778345437000,-159.61374998,0.00016418,2]
[421928763,1778345437000,-152.0,0.00016419,2]
[421928774,1778345437000,-500.0,0.00016518,2]
[421928767,1778345437000,-372.33602436,0.00016419,2]
[421928776,1778345437000,-500.0,0.00016518,2]
[421928773,1778345437000,-500.0,0.00016518,2]
[421928771,1778345437000,-2080.17592889,0.00016509,2]
[421928766,1778345437000,-150.0,0.00016419,2]
[421928772,1778345437000,-644.107,0.00016509,2]
[421928769,1778345437000,-1048.95724783,0.00016419,2]
[421928770,1778345437000,-164.46466631,0.00016509,2]
[421928765,1778345437000,-151.0,0.00016419,2]
[421928761,1778345437000,-550.0,0.00016418,2]
[421928756,1778345437000,-1131.52677623,0.00016092,2]
[421928762,1778345437000,-150.0,0.00016419,2]
[421928768,1778345437000,-4482.37906018,0.00016419,2]
[421928784,1778345438000,-151.0,0.00016518,2]
[421928777,1778345438000,-500.0,0.00016518,2]
[421928778,1778345438000,-500.0,0.00016518,2]
[421928779,1778345438000,-500.0,0.00016518,2]
[421928780,1778345438000,-500.0,0.00016518,2]
[421928782,1778345438000,-500.0,0.00016518,2]
[421928781,1778345438000,-508.37034909,0.00016518,2]
[421928783,1778345438000,-150.0,0.00016518,2]
[421928790,1778345438000,-6747.13311304,0.00016573,2]
[421928786,1778345438000,-150.0,0.00016518,2]
[421928788,1778345438000,-165.0,0.00016519,3]
[421928785,1778345438000,-151.0,0.00016518,2]
[421928787,1778345438000,-202.72499068,0.00016519,2]
[421928792,1778345438000,-600.68996222,0.00016575,2]
[421928794,1778345438000,-26049.01854509,0.00016616,2]
[421928793,1778345438000,-478.8,0.00016615,2]
[421928796,1778345438000,-380.52932165,0.00016616,2]
[421928797,1778345438000,-762.66580973,0.00016616,2]
[421928791,1778345438000,-7546.31003778,0.00016575,2]
[421928800,1778345439000,-1530.12653448,0.00016616,2]
[421928802,1778345440000,-11555.03002321,0.00016616,2]
[421928801,1778345440000,-6890.61843035,0.00016616,2]
[421928815,1778345442000,-1000.0,0.00016718,2]
[421928813,1778345442000,-327.46122111,0.00016673,2]
[421928816,1778345442000,-1000.0,0.00016718,2]
[421928814,1778345442000,-139.19952308,0.00016673,2]
[421928817,1778345442000,-1000.0,0.00016718,2]
[421928821,1778345442000,-1000.0,0.00016718,2]
[421928820,1778345442000,-1000.0,0.00016718,2]
[421928818,1778345442000,-1000.0,0.00016718,2]
[421928819,1778345442000,-1000.0,0.00016718,2]
[421928877,1778345443000,-150.0,0.00018843,2]
[421928860,1778345443000,-151.0,0.00017447,2]
[421928854,1778345443000,-645.46844825,0.00017421,2]
[421928853,1778345443000,-1680.0,0.00017409,2]
[421928861,1778345443000,-800.0,0.00017534,2]
[421928862,1778345443000,-2236.95670849,0.00017605,2]
[421928855,1778345443000,-150.0,0.00017447,2]
[421928859,1778345443000,-152.0,0.00017447,2]
[421928857,1778345443000,-152.0,0.00017447,2]
[421928856,1778345443000,-151.0,0.00017447,2]
[421928858,1778345443000,-150.0,0.00017447,2]
[421928863,1778345443000,-214.73073128,0.00017624,2]
[421928888,1778345443000,-500.0,0.00018873,2]
[421928865,1778345443000,-208.0536425,0.00017624,2]
[421928851,1778345443000,-150.1,0.00017345,2]
[421928872,1778345443000,-4477.34,0.00018533,2]
[421928871,1778345443000,-1615.24,0.00018533,2]
[421928864,1778345443000,-160.0,0.00017624,2]
[421928869,1778345443000,-1910.78,0.00018533,5]
[421928870,1778345443000,-4378.43,0.00018533,2]
[421928866,1778345443000,-168.89,0.0001764,2]
[421928873,1778345443000,-150.99,0.00018533,2]
[421928874,1778345443000,-535.35,0.0001872,2]
[421928867,1778345443000,-2000.0,0.00017867,2]
[421928876,1778345443000,-1982.33,0.0001872,2]
[421928878,1778345443000,-500.0,0.00018873,2]
[421928875,1778345443000,-780.26,0.0001872,2]
[421928868,1778345443000,-166.69,0.000181,2]
[421928850,1778345443000,-300.0,0.00017163,2]
[421928849,1778345443000,-1345.27,0.00017163,2]
[421928879,1778345443000,-500.0,0.00018873,2]
[421928826,1778345443000,-195.70901141,0.00016718,2]
[421928824,1778345443000,-1000.0,0.00016718,2]
[421928822,1778345443000,-1000.0,0.00016718,2]
[421928825,1778345443000,-1000.0,0.00016718,2]
[421928823,1778345443000,-1000.0,0.00016718,2]
[421928827,1778345443000,-2849.7430366,0.0001675,2]
[421928828,1778345443000,-812.5847896,0.0001675,2]
[421928830,1778345443000,-1345.27,0.00016773,2]
[421928831,1778345443000,-2500.0,0.00016871,2]
[421928832,1778345443000,-250.0,0.00016871,2]
[421928833,1778345443000,-384.22620767,0.00016945,2]
[421928836,1778345443000,-500.0,0.00017,2]
[421928852,1778345443000,-237.32707313,0.00017348,2]
[421928835,1778345443000,-2500.0,0.00016987,2]
[421928837,1778345443000,-500.0,0.00017,2]
[421928834,1778345443000,-329.49494965,0.00016945,2]
[421928838,1778345443000,-590.18579992,0.00017,2]
[421928840,1778345443000,-211.58662156,0.00017,2]
[421928839,1778345443000,-150.0,0.00017,2]
[421928841,1778345443000,-150.0,0.00017,2]
[421928848,1778345443000,-250.0,0.00017069,2]
[421928842,1778345443000,-150.0,0.00017,2]
[421928844,1778345443000,-250.0,0.00017025,2]
[421928847,1778345443000,-2500.0,0.00017069,2]
[421928846,1778345443000,-350.77,0.00017067,2]
[421928843,1778345443000,-274.55892607,0.00017,2]
[421928845,1778345443000,-2157.14243826,0.00017057,2]
[421928829,1778345443000,-29275.1062133,0.0001675,2]
[421928880,1778345443000,-500.0,0.00018873,2]
[421928904,1778345443000,-500.68378628,0.00019673,2]
[421928887,1778345443000,-500.0,0.00018873,2]
[421928916,1778345443000,-314.08650511,0.00019673,2]
[421928927,1778345443000,-447.49,0.00020481,2]
[421928917,1778345443000,-54181.24,0.000197,2]
[421928918,1778345443000,-1207.96,0.000197,2]
[421928924,1778345443000,-1457.0,0.0002,2]
[421928920,1778345443000,-10000.0,0.000198,2]
[421928923,1778345443000,-206.0,0.0002,2]
[421928884,1778345443000,-503.09502173,0.00018873,2]
[421928928,1778345443000,-168.89,0.00020551,2]
[421928926,1778345443000,-1048.95724777,0.00020014,2]
[421928921,1778345443000,-2000.0,0.00019852,2]
[421928919,1778345443000,-235.59323341,0.000197,2]
[421928925,1778345443000,-1862.0,0.0002,2]
[421928930,1778345443000,-401.0,0.00020913,2]
[421928939,1778345443000,-2000.0,0.00021837,2]
[421928929,1778345443000,-372.33602431,0.00020617,2]
[421928940,1778345443000,-4482.37906013,0.00021881,2]
[421928931,1778345443000,-206.0,0.00021,2]
[421928937,1778345443000,-560.071,0.00021377,2]
[421928938,1778345443000,-3627.0,0.00021377,2]
[421928932,1778345443000,-1457.0,0.00021,2]
[421928933,1778345443000,-1862.0,0.00021,2]
[421928934,1778345443000,-1352.0,0.00021377,2]
[421928936,1778345443000,-925.0,0.00021377,2]
[421928935,1778345443000,-3539.0,0.00021377,2]
[421928941,1778345443000,-5000.0,0.00021918,2]
[421928942,1778345443000,-109.40137092,0.00022,2]
[421928915,1778345443000,-169.42511874,0.00019673,2]
[421928911,1778345443000,-500.0,0.00019673,2]
[421928922,1778345443000,-1666.0,0.0002,2]
[421928913,1778345443000,-211.87792282,0.00019673,2]
[421928882,1778345443000,-500.79350794,0.00018873,2]
[421928883,1778345443000,-500.0,0.00018873,2]
[421928881,1778345443000,-318.15592049,0.00018873,2]
[421928912,1778345443000,-500.0,0.00019673,2]
[421928886,1778345443000,-500.0,0.00018873,2]
[421928889,1778345443000,-500.0,0.00018873,2]
[421928891,1778345443000,-500.0,0.00018873,2]
[421928890,1778345443000,-500.0,0.00018873,2]
[421928901,1778345443000,-490.32558078,0.00019673,2]
[421928893,1778345443000,-1207.96,0.000189,2]
[421928894,1778345443000,-176.22,0.00018952,2]
[421928892,1778345443000,-54181.24,0.000189,2]
[421928895,1778345443000,-1137.0,0.00019133,2]
[421928885,1778345443000,-500.0,0.00018873,2]
[421928899,1778345443000,-500.0,0.00019673,2]
[421928897,1778345443000,-6747.13311299,0.00019352,2]
[421928907,1778345443000,-500.0,0.00019673,2]
[421928910,1778345443000,-501.20996179,0.00019673,2]
[421928906,1778345443000,-500.0,0.00019673,2]
[421928908,1778345443000,-500.0,0.00019673,2]
[421928905,1778345443000,-500.0,0.00019673,2]
[421928909,1778345443000,-500.0,0.00019673,2]
[421928914,1778345443000,-500.0,0.00019673,2]
[421928902,1778345443000,-500.0,0.00019673,2]
[421928898,1778345443000,-166.69,0.0001948,2]
[421928900,1778345443000,-500.0,0.00019673,2]
[421928896,1778345443000,-4482.37906013,0.0001915,2]
[421928903,1778345443000,-236.04246663,0.00019673,2]
[421928968,1778345445000,-812.36,0.00022466,2]
[421928979,1778345445000,-203.048029,0.00023226,14]
[421928982,1778345445000,-54181.24,0.000237,2]
[421928977,1778345445000,-1862.0,0.00023,2]
[421928976,1778345445000,-1457.0,0.00023,2]
[421928974,1778345445000,-500.0,0.00022871,2]
[421928971,1778345445000,-780.26,0.00022691,2]
[421928969,1778345445000,-349.39254368,0.00022466,2]
[421928970,1778345445000,-535.35,0.00022691,2]
[421928972,1778345445000,-1982.33,0.00022691,2]
[421928984,1778345445000,-2000.0,0.00023822,2]
[421928965,1778345445000,-1862.0,0.00022,2]
[421928966,1778345445000,-6747.13311299,0.00022131,2]
[421928973,1778345445000,-176.22,0.00022742,2]
[421928964,1778345445000,-18.2732621,0.00022,2]
[421928962,1778345445000,-1438.7267379,0.00022,2]
[421928958,1778345445000,-6047.0,0.00021377,2]
[421928960,1778345445000,-96.59862908,0.00022,2]
[421928967,1778345445000,-223.33613193,0.00022407,2]
[421928980,1778345445000,-1048.95724777,0.00023609,2]
[421928993,1778345445000,-6047.0,0.00024377,2]
[421928983,1778345445000,-1207.96,0.000237,2]
[421928981,1778345445000,-174.6814165,0.0002369,2]
[421929000,1778345445000,-174.28,0.00024658,2]
[421929001,1778345445000,-982.83,0.00024658,2]
[421928999,1778345445000,-970.25,0.00024658,2]
[421928995,1778345445000,-165.0,0.00024463,3]
[421928991,1778345445000,-417.0,0.00024377,2]
[421928994,1778345445000,-580.0,0.00024397,2]
[421928992,1778345445000,-2767.263,0.00024377,2]
[421928990,1778345445000,-3539.0,0.00024377,2]
[421928996,1778345445000,-4482.37906013,0.00024611,2]
[421928986,1778345445000,-206.0,0.00024,2]
[421928989,1778345445000,-266.9,0.0002411,2]
[421928998,1778345445000,-249.12,0.00024658,2]
[421928997,1778345445000,-1000.0,0.00024658,2]
[421928987,1778345445000,-1457.0,0.00024,2]
[421928985,1778345445000,-350.77,0.00023894,2]
[421928978,1778345445000,-171.65,0.00023216,2]
[421928975,1778345445000,-206.0,0.00023,2]
[421928988,1778345445000,-1862.0,0.00024,2]
[421929051,1778345446000,-655.22,0.00026292,2]
[421929040,1778345446000,-154.97,0.00026235,30]
[421929050,1778345446000,-646.83,0.00026291,30]
[421929049,1778345446000,-655.22,0.00026275,30]
[421929039,1778345446000,-154.91,0.00026219,7]
[421929036,1778345446000,-154.91,0.00026192,2]
[421929035,1778345446000,-154.97,0.00026179,2]
[421929033,1778345446000,-190.64,0.00026027,7]
[421929034,1778345446000,-580.0,0.00026082,3]
[421929048,1778345446000,-154.91,0.00026274,2]
[421929032,1778345446000,-982.83,0.00025955,2]
[421929047,1778345446000,-646.83,0.00026274,7]
[421929057,1778345446000,-154.97,0.0002632,30]
[421929044,1778345446000,-655.22,0.00026257,7]
[421929045,1778345446000,-646.83,0.00026258,2]
[421929046,1778345446000,-154.97,0.00026263,2]
[421929042,1778345446000,-655.22,0.0002624,2]
[421929052,1778345446000,-154.97,0.00026292,7]
[421929054,1778345446000,-154.91,0.00026301,7]
[421929058,1778345446000,-646.83,0.00026324,7]
[421929055,1778345446000,-646.83,0.00026308,2]
[421929037,1778345446000,-154.97,0.00026207,7]
[421929056,1778345446000,-655.22,0.0002631,7]
[421929062,1778345446000,-655.22,0.00026345,2]
[421929043,1778345446000,-154.91,0.00026246,30]
[421929027,1778345446000,-982.83,0.00025667,7]
[421929013,1778345446000,-1469.97723788,0.00025,2]
[421929028,1778345446000,-970.25,0.00025811,30]
[421929002,1778345446000,-970.25,0.00024802,7]
[421929007,1778345446000,-6747.13311299,0.0002491,2]
[421929003,1778345446000,-174.11,0.00024802,7]
[421929005,1778345446000,-982.83,0.00024802,7]
[421929009,1778345446000,-970.25,0.00024946,30]
[421929006,1778345446000,-372.33602431,0.00024814,2]
[421929004,1778345446000,-174.28,0.00024802,7]
[421929010,1778345446000,-982.83,0.00024946,30]
[421929008,1778345446000,-447.49,0.00024919,2]
[421929022,1778345446000,-982.83,0.00025378,30]
[421929012,1778345446000,-218.0,0.00025,2]
[421929015,1778345446000,-970.25,0.0002509,2]
[421929021,1778345446000,-970.25,0.00025378,30]
[421929023,1778345446000,-580.0,0.00025521,3]
[421929011,1778345446000,-580.0,0.00024959,2]
[421929014,1778345446000,-1869.0,0.00025,2]
[421929017,1778345446000,-599.60298507,0.00025172,2]
[421929059,1778345446000,-154.91,0.00026328,30]
[421929019,1778345446000,-970.25,0.00025234,7]
[421929018,1778345446000,-209.40437684,0.00025172,2]
[421929016,1778345446000,-982.83,0.0002509,2]
[421929020,1778345446000,-982.83,0.00025234,7]
[421929024,1778345446000,-970.25,0.00025523,2]
[421929029,1778345446000,-982.83,0.00025811,30]
[421929026,1778345446000,-970.25,0.00025667,7]
[421929031,1778345446000,-970.25,0.00025955,2]
[421929063,1778345446000,-154.97,0.00026348,2]
[421929025,1778345446000,-982.83,0.00025523,2]
[421929053,1778345446000,-151.0,0.00026296,2]
[421929101,1778345446000,-655.22,0.00026522,7]
[421929092,1778345446000,-646.83,0.00026475,7]
[421929064,1778345446000,-154.91,0.00026356,2]
[421929093,1778345446000,-655.22,0.00026487,30]
[421929095,1778345446000,-646.83,0.00026491,30]
[421929096,1778345446000,-154.91,0.00026493,30]
[421929099,1778345446000,-646.83,0.00026508,2]
[421929098,1778345446000,-655.22,0.00026504,2]
[421929102,1778345446000,-646.83,0.00026525,7]
[421929114,1778345446000,-1048.95724777,0.00027204,2]
[421929104,1778345446000,-655.22,0.0002654,30]
[421929107,1778345446000,-655.22,0.00026557,2]
[421929103,1778345446000,-320.88253791,0.00026528,2]
[421929106,1778345446000,-154.91,0.00026547,7]
[421929105,1778345446000,-646.83,0.00026541,30]
[421929113,1778345446000,-150.0,0.00026849,2]
[421929110,1778345446000,-155.01,0.00026575,30]
[421929112,1778345446000,-580.0,0.00026644,4]
[421929108,1778345446000,-646.83,0.00026558,2]
[421929109,1778345446000,-646.95,0.00026575,7]
[421929111,1778345446000,-655.27,0.00026575,7]
[421929116,1778345446000,-152.0,0.00027303,7]
[421929115,1778345446000,-580.0,0.00027205,4]
[421929119,1778345446000,-1595.7372,0.00027342,2]
[421929117,1778345446000,-152.0,0.00027303,7]
[421929094,1778345446000,-154.97,0.0002649,30]
[421929089,1778345446000,-154.97,0.00026462,7]
[421929091,1778345446000,-655.22,0.00026469,7]
[421929118,1778345446000,-354.07331052,0.00027342,2]
[421929061,1778345446000,-646.83,0.00026341,30]
[421929060,1778345446000,-655.22,0.00026328,30]
[421929070,1778345446000,-99.29851699,0.00026381,30]
[421929065,1778345446000,-646.83,0.00026358,2]
[421929073,1778345446000,-372.79148301,0.00026391,30]
[421929069,1778345446000,-555.92148301,0.00026381,30]
[421929066,1778345446000,-655.22,0.00026363,7]
[421929071,1778345446000,-154.91,0.00026383,7]
[421929097,1778345446000,-214.73073128,0.000265,30]
[421929067,1778345446000,-646.83,0.00026374,7]
[421929068,1778345446000,-154.97,0.00026377,7]
[421929076,1778345446000,-655.22,0.00026398,2]
[421929078,1778345446000,-154.97,0.00026405,30]
[421929075,1778345446000,-274.03851699,0.00026391,30]
[421929083,1778345446000,-154.97,0.00026433,2]
[421929077,1778345446000,-214.73073128,0.000264,7]
[421929090,1778345446000,-154.91,0.00026465,7]
[421929080,1778345446000,-154.91,0.00026411,30]
[421929085,1778345446000,-154.91,0.00026438,2]
[421929088,1778345446000,-646.83,0.00026458,2]
[421929100,1778345446000,-154.91,0.0002652,2]
[421929086,1778345446000,-646.83,0.00026441,30]
[421929082,1778345446000,-646.83,0.00026425,7]
[421929081,1778345446000,-655.22,0.00026416,7]
[421929079,1778345446000,-646.83,0.00026408,2]
[421929087,1778345446000,-655.22,0.00026451,2]
[421929084,1778345446000,-655.22,0.00026434,30]
[421929120,1778345447000,-214.93463941,0.00027342,2]
[421929121,1778345464000,356.07689632,0.00024614,120]
[421929127,1778345654000,933.9,0.00024766,120]
[421929130,1778345712000,150.0,0.0001425,2]
[421929131,1778345722000,150.0,0.0001425,2]
[421929141,1778346093000,10000.01,0.00015,2]
[421929140,1778346093000,10000.01,0.00015,2]
[421929144,1778346093000,10000.01,0.00015,2]
[421929142,1778346093000,10000.01,0.00015,2]
[421929143,1778346093000,10000.01,0.00015,2]
[421929145,1778346093000,10000.01,0.00015,2]
[421929148,1778346093000,10000.01,0.00015,2]
[421929147,1778346093000,10000.01,0.00015,2]
[421929150,1778346093000,693943.32707608,0.00015,2]
[421929149,1778346093000,10000.01,0.00015,2]
[421929146,1778346093000,10000.01,0.00015,2]
[421929153,1778346147000,165.0,0.00015,2]
[421929158,1778346188000,-250.0,0.00016314,2]
[421929159,1778346188000,-2500.0,0.00016315,2]
[421929157,1778346188000,-1047.67740867,0.00016314,2]
[421929162,1778346188000,-2049.43248822,0.0001639,2]
[421929161,1778346188000,-2500.0,0.0001639,2]
[421929160,1778346188000,-285.79270311,0.00016315,2]
[421929174,1778346189000,-500.0,0.00016514,2]
[421929178,1778346189000,-500.0,0.00016514,2]
[421929177,1778346189000,-500.0,0.00016514,2]
[421929176,1778346189000,-553.7377243,0.00016514,2]
[421929175,1778346189000,-274.45883727,0.00016514,2]
[421929173,1778346189000,-500.0,0.00016514,2]
[421929172,1778346189000,-499.92487775,0.00016514,2]
[421929166,1778346189000,-208.26613482,0.00016415,2]
[421929169,1778346189000,-601.0,0.00016493,2]
[421929170,1778346189000,-202.64876252,0.00016514,2]
[421929167,1778346189000,-2253.64530624,0.00016415,2]
[421929168,1778346189000,-4048.27986783,0.00016415,2]
[421929165,1778346189000,-329.13434965,0.00016415,2]
[421929164,1778346189000,-300.0,0.00016414,2]
[421929163,1778346189000,-2830.89336849,0.00016414,2]
[421929171,1778346189000,-500.0,0.00016514,2]
[421929179,1778346189000,-500.0,0.00016514,2]
[421929180,1778346189000,-455.58227849,0.00016514,2]
[421929181,1778346189000,-563.02361267,0.00016514,2]
[421929199,1778346189000,-500.0,0.00016514,2]
[421929182,1778346189000,-500.0,0.00016514,2]
[421929195,1778346189000,-563.02361267,0.00016514,2]
[421929197,1778346189000,-563.02361267,0.00016514,2]
[421929196,1778346189000,-500.0,0.00016514,2]
[421929194,1778346189000,-500.0,0.00016514,2]
[421929192,1778346189000,-500.0,0.00016514,2]
[421929193,1778346189000,-563.02361267,0.00016514,2]
[421929198,1778346189000,-500.0,0.00016514,2]
[421929191,1778346189000,-500.0,0.00016514,2]
[421929188,1778346189000,-563.02361267,0.00016514,2]
[421929189,1778346189000,-500.0,0.00016514,2]
[421929187,1778346189000,-500.0,0.00016514,2]
[421929186,1778346189000,-563.02361267,0.00016514,2]
[421929185,1778346189000,-500.0,0.00016514,2]
[421929184,1778346189000,-563.02361267,0.00016514,2]
[421929183,1778346189000,-267.3826074,0.00016514,2]
[421929190,1778346189000,-563.02361267,0.00016514,2]
[421929212,1778346190000,-563.02361267,0.00016514,2]
[421929210,1778346190000,-563.02361267,0.00016514,2]
[421929211,1778346190000,-500.0,0.00016514,2]
[421929209,1778346190000,-500.0,0.00016514,2]
[421929208,1778346190000,-563.02361267,0.00016514,2]
[421929207,1778346190000,-500.0,0.00016514,2]
[421929202,1778346190000,-563.02361267,0.00016514,2]
[421929206,1778346190000,-563.02361267,0.00016514,2]
[421929203,1778346190000,-500.0,0.00016514,2]
[421929204,1778346190000,-563.02361267,0.00016514,2]
[421929201,1778346190000,-500.0,0.00016514,2]
[421929213,1778346190000,-500.0,0.00016514,2]
[421929200,1778346190000,-563.02361267,0.00016514,2]
[421929205,1778346190000,-500.0,0.00016514,2]
[421929214,1778346190000,-563.02361267,0.00016514,2]
[421929230,1778346190000,-500.0,0.00016514,2]
[421929215,1778346190000,-500.0,0.00016514,2]
[421929231,1778346190000,-563.02361267,0.00016514,2]
[421929229,1778346190000,-563.02361267,0.00016514,2]
[421929227,1778346190000,-500.0,0.00016514,2]
[421929228,1778346190000,-500.0,0.00016514,2]
[421929226,1778346190000,-563.02361267,0.00016514,2]
[421929225,1778346190000,-500.0,0.00016514,2]
[421929224,1778346190000,-563.02361267,0.00016514,2]
[421929216,1778346190000,-563.02361267,0.00016514,2]
[421929223,1778346190000,-563.02361267,0.00016514,2]
[421929221,1778346190000,-563.02361267,0.00016514,2]
[421929219,1778346190000,-563.02361267,0.00016514,2]
[421929220,1778346190000,-500.0,0.00016514,2]
[421929218,1778346190000,-500.0,0.00016514,2]
[421929217,1778346190000,-500.0,0.00016514,2]
[421929222,1778346190000,-500.0,0.00016514,2]
[421929244,1778346191000,-563.02361267,0.00016514,2]
[421929245,1778346191000,-500.0,0.00016514,2]
[421929243,1778346191000,-563.02361267,0.00016514,2]
[421929242,1778346191000,-500.0,0.00016514,2]
[421929241,1778346191000,-563.02361267,0.00016514,2]
[421929240,1778346191000,-500.0,0.00016514,2]
[421929236,1778346191000,-500.0,0.00016514,2]
[421929237,1778346191000,-563.02361267,0.00016514,2]
[421929238,1778346191000,-500.0,0.00016514,2]
[421929234,1778346191000,-500.0,0.00016514,2]
[421929235,1778346191000,-563.02361267,0.00016514,2]
[421929232,1778346191000,-500.0,0.00016514,2]
[421929246,1778346191000,-563.02361267,0.00016514,2]
[421929239,1778346191000,-563.02361267,0.00016514,2]
[421929247,1778346191000,-500.0,0.00016514,2]
[421929233,1778346191000,-563.02361267,0.00016514,2]
[421929249,1778346191000,-500.0,0.00016514,2]
[421929264,1778346191000,-500.0,0.00016514,2]
[421929262,1778346191000,-500.0,0.00016514,2]
[421929261,1778346191000,-563.02361267,0.00016514,2]
[421929260,1778346191000,-500.0,0.00016514,2]
[421929259,1778346191000,-500.0,0.00016514,2]
[421929258,1778346191000,-563.02361267,0.00016514,2]
[421929257,1778346191000,-563.02361267,0.00016514,2]
[421929263,1778346191000,-563.02361267,0.00016514,2]
[421929255,1778346191000,-500.0,0.00016514,2]
[421929256,1778346191000,-500.0,0.00016514,2]
[421929250,1778346191000,-563.02361267,0.00016514,2]
[421929251,1778346191000,-500.0,0.00016514,2]
[421929248,1778346191000,-563.02361267,0.00016514,2]
[421929254,1778346191000,-563.02361267,0.00016514,2]
[421929253,1778346191000,-500.0,0.00016514,2]
[421929252,1778346191000,-563.02361267,0.00016514,2]
[421929278,1778346192000,-251.30464885,0.00016514,2]
[421929277,1778346192000,-563.02361267,0.00016514,2]
[421929276,1778346192000,-500.0,0.00016514,2]
[421929275,1778346192000,-563.02361267,0.00016514,2]
[421929273,1778346192000,-500.0,0.00016514,2]
[421929274,1778346192000,-563.02361267,0.00016514,2]
[421929271,1778346192000,-500.0,0.00016514,2]
[421929270,1778346192000,-563.02361267,0.00016514,2]
[421929268,1778346192000,-500.0,0.00016514,2]
[421929267,1778346192000,-500.0,0.00016514,2]
[421929265,1778346192000,-500.0,0.00016514,2]
[421929266,1778346192000,-563.02361267,0.00016514,2]
[421929279,1778346192000,-500.0,0.00016514,2]
[421929272,1778346192000,-500.0,0.00016514,2]
[421929269,1778346192000,-500.0,0.00016514,2]
[421929281,1778346192000,-500.0,0.00016514,2]
[421929282,1778346192000,-500.0,0.00016514,2]
[421929280,1778346192000,-563.02361267,0.00016514,2]
[421929295,1778346192000,-847.26384984,0.00016514,2]
[421929294,1778346192000,-2265.10089667,0.00016514,2]
[421929293,1778346192000,-2265.10089667,0.00016514,2]
[421929291,1778346192000,-847.26384984,0.00016514,2]
[421929290,1778346192000,-847.26384984,0.00016514,2]
[421929292,1778346192000,-847.26384984,0.00016514,2]
[421929289,1778346192000,-847.26384984,0.00016514,2]
[421929286,1778346192000,-847.26384984,0.00016514,2]
[421929287,1778346192000,-847.26384984,0.00016514,2]
[421929285,1778346192000,-563.02361267,0.00016514,2]
[421929284,1778346192000,-563.02361267,0.00016514,2]
[421929283,1778346192000,-563.02361267,0.00016514,2]
[421929288,1778346192000,-847.26384984,0.00016514,2]
[421929311,1778346193000,-847.26384984,0.00016514,2]
[421929308,1778346193000,-847.26384984,0.00016514,2]